{"text_format":"3","workbook":"xlsx","n_sheets":1,"sheets":["Retirada de livro da biblioteca"],"not_rendered":{"defined_names":4},"read":"whole","date_system":"1900"}

{"sheet":"Retirada de livro da biblioteca","index":0,"n_rows":9,"n_cols":8,"rows_kept":9,"merged":[[0,1,0,4],[0,5,0,6]]}
[null,"Planilha de retirada de livros da biblioteca",{"$nulls":3},"DIAS ATÉ A DEVOLUÇÃO: ",null,10]
["Em atraso","ALUNO","EMAIL DE CONTATO","TELEFONE DE CONTATO","TÍTULO DE LIVRO","DATA DO EMPRÉSTIMO","DATA DA DEVOLUÇÃO","DIAS"]
[{"$f":"IFERROR(((Livros[[#This Row],[DATA DO EMPRÉSTIMO]]+ConcessãoEmDias)<TODAY())*(LEN(Livros[[#This Row],[DATA DA DEVOLUÇÃO]])=0)*(LEN(Livros[[#This Row],[DATA DO EMPRÉSTIMO]])>0),0)","v":0},"Manuela Torres","pessoa@exemplo.com","555-0100","Uma Casa na Pradaria",{"$f":"DATE(YEAR(TODAY()),1,14)","v":"2018-01-14"},{"$f":"DATE(YEAR(TODAY()),1,21)","v":"2018-01-21"},{"$f":"IFERROR(IF(Livros[[#This Row],[DATA DA DEVOLUÇÃO]]=\"\",IF(Livros[[#This Row],[DATA DO EMPRÉSTIMO]]<>\"\", TODAY()-Livros[[#This Row],[DATA DO EMPRÉSTIMO]],\"\"),Livros[[#This Row],[DATA DA DEVOLUÇÃO]]-Livros[[#This Row],[DATA DO EMPRÉSTIMO]]), \"\")","v":7}]
[{"$f":"IFERROR(((Livros[[#This Row],[DATA DO EMPRÉSTIMO]]+ConcessãoEmDias)<TODAY())*(LEN(Livros[[#This Row],[DATA DA DEVOLUÇÃO]])=0)*(LEN(Livros[[#This Row],[DATA DO EMPRÉSTIMO]])>0),0)","v":0},"Carlos Lima","pessoa@exemplo.com","555-0101","A Menina e o Porquinho",{"$f":"DATE(YEAR(TODAY()),2,15)","v":"2018-02-15"},{"$f":"DATE(YEAR(TODAY()),2,18)","v":"2018-02-18"},{"$f":"IFERROR(IF(Livros[[#This Row],[DATA DA DEVOLUÇÃO]]=\"\",IF(Livros[[#This Row],[DATA DO EMPRÉSTIMO]]<>\"\", TODAY()-Livros[[#This Row],[DATA DO EMPRÉSTIMO]],\"\"),Livros[[#This Row],[DATA DA DEVOLUÇÃO]]-Livros[[#This Row],[DATA DO EMPRÉSTIMO]]), \"\")","v":3}]
[{"$f":"IFERROR(((Livros[[#This Row],[DATA DO EMPRÉSTIMO]]+ConcessãoEmDias)<TODAY())*(LEN(Livros[[#This Row],[DATA DA DEVOLUÇÃO]])=0)*(LEN(Livros[[#This Row],[DATA DO EMPRÉSTIMO]])>0),0)","v":0},"Clara Barbosa","pessoa@exemplo.com","555-0102","A Cabine Mágica",{"$f":"DATE(YEAR(TODAY()),2,17)","v":"2018-02-17"},{"$f":"DATE(YEAR(TODAY()),2,22)","v":"2018-02-22"},{"$f":"IFERROR(IF(Livros[[#This Row],[DATA DA DEVOLUÇÃO]]=\"\",IF(Livros[[#This Row],[DATA DO EMPRÉSTIMO]]<>\"\", TODAY()-Livros[[#This Row],[DATA DO EMPRÉSTIMO]],\"\"),Livros[[#This Row],[DATA DA DEVOLUÇÃO]]-Livros[[#This Row],[DATA DO EMPRÉSTIMO]]), \"\")","v":5}]
[{"$f":"IFERROR(((Livros[[#This Row],[DATA DO EMPRÉSTIMO]]+ConcessãoEmDias)<TODAY())*(LEN(Livros[[#This Row],[DATA DA DEVOLUÇÃO]])=0)*(LEN(Livros[[#This Row],[DATA DO EMPRÉSTIMO]])>0),0)","v":0},"Fabio Pena","pessoa@exemplo.com","555-0103","Mrs. Frisby e os Ratos de Nimh",{"$f":"DATE(YEAR(TODAY()),2,17)","v":"2018-02-17"},{"$f":"DATE(YEAR(TODAY()),2,25)","v":"2018-02-25"},{"$f":"IFERROR(IF(Livros[[#This Row],[DATA DA DEVOLUÇÃO]]=\"\",IF(Livros[[#This Row],[DATA DO EMPRÉSTIMO]]<>\"\", TODAY()-Livros[[#This Row],[DATA DO EMPRÉSTIMO]],\"\"),Livros[[#This Row],[DATA DA DEVOLUÇÃO]]-Livros[[#This Row],[DATA DO EMPRÉSTIMO]]), \"\")","v":8}]
[{"$f":"IFERROR(((Livros[[#This Row],[DATA DO EMPRÉSTIMO]]+ConcessãoEmDias)<TODAY())*(LEN(Livros[[#This Row],[DATA DA DEVOLUÇÃO]])=0)*(LEN(Livros[[#This Row],[DATA DO EMPRÉSTIMO]])>0),0)","v":0},"Leila Gonçalves","pessoa@exemplo.com","555-0104","Matilda",{"$f":"DATE(YEAR(TODAY()),2,18)","v":"2018-02-18"},{"$f":"DATE(YEAR(TODAY()),2,28)","v":"2018-02-28"},{"$f":"IFERROR(IF(Livros[[#This Row],[DATA DA DEVOLUÇÃO]]=\"\",IF(Livros[[#This Row],[DATA DO EMPRÉSTIMO]]<>\"\", TODAY()-Livros[[#This Row],[DATA DO EMPRÉSTIMO]],\"\"),Livros[[#This Row],[DATA DA DEVOLUÇÃO]]-Livros[[#This Row],[DATA DO EMPRÉSTIMO]]), \"\")","v":10}]
[{"$f":"IFERROR(((Livros[[#This Row],[DATA DO EMPRÉSTIMO]]+ConcessãoEmDias)<TODAY())*(LEN(Livros[[#This Row],[DATA DA DEVOLUÇÃO]])=0)*(LEN(Livros[[#This Row],[DATA DO EMPRÉSTIMO]])>0),0)","v":1},"Melissa Mello","pessoa@exemplo.com","555-0105","As Crônicas de Narnia",{"$f":"DATE(YEAR(TODAY()),1,23)","v":"2018-01-23"},null,{"$f":"IFERROR(IF(Livros[[#This Row],[DATA DA DEVOLUÇÃO]]=\"\",IF(Livros[[#This Row],[DATA DO EMPRÉSTIMO]]<>\"\", TODAY()-Livros[[#This Row],[DATA DO EMPRÉSTIMO]],\"\"),Livros[[#This Row],[DATA DA DEVOLUÇÃO]]-Livros[[#This Row],[DATA DO EMPRÉSTIMO]]), \"\")","v":162}]
[{"$f":"IFERROR(((Livros[[#This Row],[DATA DO EMPRÉSTIMO]]+ConcessãoEmDias)<TODAY())*(LEN(Livros[[#This Row],[DATA DA DEVOLUÇÃO]])=0)*(LEN(Livros[[#This Row],[DATA DO EMPRÉSTIMO]])>0),0)","v":0},"Lara Cardoso","pessoa@exemplo.com","555-0106","A Bruxa do Lago",{"$f":"TODAY()","v":"2018-07-04"},null,{"$f":"IFERROR(IF(Livros[[#This Row],[DATA DA DEVOLUÇÃO]]=\"\",IF(Livros[[#This Row],[DATA DO EMPRÉSTIMO]]<>\"\", TODAY()-Livros[[#This Row],[DATA DO EMPRÉSTIMO]],\"\"),Livros[[#This Row],[DATA DA DEVOLUÇÃO]]-Livros[[#This Row],[DATA DO EMPRÉSTIMO]]), \"\")","v":0}]